bitfinex/quotes_BTCUSD_20230404
["timestamp","ask_amount","ask_price","bid_price","bid_amount"]
[1680594220136,0.01,27995.0,27994.0,0.61805361]
[1680594220351,0.01,27995.0,27994.0,0.56358046]
[1680594220571,0.01,27995.0,27994.0,0.51557146]
[1680594220803,0.002857,27998.0,27997.0,0.2]
[1680594221022,0.03794919,27998.0,27997.0,0.2]
[1680594221215,0.012757,27998.0,27997.0,0.20018]
[1680594221495,0.002857,27998.0,27997.0,0.20018]
[1680594221718,0.011857,27998.0,27997.0,0.20218]
[1680594223503,0.011857,27998.0,27997.0,0.6119852]
[1680594223727,0.009,27998.0,27997.0,0.6099252]
[1680594223953,0.002857,27999.0,27997.0,0.6099252]
[1680594224180,0.009,27998.0,27997.0,0.6119252]
[1680594224404,0.002857,27999.0,27998.0,0.1]
[1680594224632,0.002857,27999.0,27997.0,0.6119852]
[1680594224857,0.002857,27999.0,27997.0,0.6099252]
[1680594225092,0.002857,27999.0,27997.0,0.20012]
[1680594225352,0.0406441,27999.0,27997.0,0.20218]
[1680594225570,0.007979,27998.0,27997.0,0.20018]
[1680594225799,0.010836,27998.0,27997.0,0.20218]
[1680594226695,0.010836,27998.0,27997.0,0.20018]
[1680594226924,0.010836,27998.0,27997.0,0.20218]
[1680594227145,0.04611241,27998.0,27997.0,0.20018]
[1680594227364,0.05511241,27998.0,27997.0,0.20218]
[1680594228258,0.0197694,27998.0,27997.0,0.202]
[1680594230766,0.009,27998.0,27997.0,0.202]
[1680594230993,0.022129,27998.0,27997.0,0.202]
[1680594231434,0.013129,27998.0,27997.0,0.2]
[1680594231678,0.011857,27998.0,27997.0,0.202]
[1680594231903,0.002857,27998.0,27997.0,0.2]
[1680594232121,0.002857,27998.0,27997.0,0.202]
[1680594232122,0.011857,27998.0,27997.0,0.202]
[1680594232803,0.011857,27998.0,27997.0,0.20206]
[1680594233018,0.002857,27998.0,27997.0,0.20006]
[1680594233462,0.002857,27998.0,27997.0,0.20206]
[1680594233709,0.011857,27998.0,27997.0,0.20006]
[1680594233934,0.020857,27998.0,27997.0,0.20206]
[1680594234209,0.011857,27998.0,27997.0,0.0364942]
[1680594234649,0.00816338,27998.0,27997.0,6e-05]
[1680594234868,0.19743938,27998.0,27997.0,6e-05]
[1680594235089,0.32785938,27998.0,27997.0,0.00206]
[1680594235974,0.31885938,27998.0,27997.0,6e-05]
[1680594236196,0.31885938,27998.0,27997.0,0.00206]
[1680594236197,0.322763,27998.0,27997.0,0.00206]
[1680594236419,0.313553,27998.0,27997.0,6e-05]
[1680594236638,0.313553,27998.0,27997.0,0.00206]
[1680594236639,0.322553,27998.0,27997.0,0.00206]
[1680594236890,0.313763,27998.0,27997.0,6e-05]
[1680594237083,0.322763,27998.0,27997.0,0.00206]
[1680594237334,0.313763,27998.0,27997.0,6e-05]
[1680594237545,0.022763,27998.0,27997.0,0.00206]
[1680594237778,0.322553,27998.0,27997.0,0.00206]
[1680594237998,0.322553,27998.0,27997.0,0.07460114]
[1680594237999,0.309,27998.0,27997.0,0.07460114]
[1680594238261,0.30921,27998.0,27997.0,0.07460114]
[1680594238711,0.3,27998.0,27997.0,0.07260114]
[1680594238954,0.3,27998.0,27997.0,0.5161332]
[1680594239184,0.00921,27998.0,27997.0,0.48002626]
[1680594239451,0.009,27998.0,27997.0,0.48002626]
[1680594239647,0.03834984,27999.0,27997.0,0.0344942]
[1680594239863,0.009,27998.0,27997.0,0.0364942]
[1680594240291,0.03604215,28000.0,27997.0,0.0344942]
[1680594240525,0.009,27998.0,27997.0,0.0364942]
[1680594241186,0.009,27998.0,27997.0,0.58286808]
[1680594241404,0.002857,28000.0,27997.0,0.1196942]
[1680594241628,0.002857,28000.0,27998.0,0.1]
[1680594241629,0.022176,28000.0,27998.0,0.1]
[1680594241860,0.002857,28000.0,27998.0,0.1]
[1680594242547,0.011857,28000.0,27998.0,0.102]
[1680594243209,0.009,28000.0,27998.0,0.102]
[1680594243886,0.04517307,28000.0,27998.0,0.102]
[1680594244106,0.009,28000.0,27998.0,0.5666987]
[1680594244523,0.189,28000.0,27998.0,0.5666987]
[1680594244804,0.18,28000.0,27998.0,0.5646987]
[1680594245042,0.18821,28000.0,27998.0,0.5666987]
[1680594245273,0.18,28000.0,27998.0,0.1]
[1680594245494,0.009722,27999.0,27998.0,0.102]
[1680594245717,0.312579,27999.0,27998.0,0.102]
[1680594246152,0.302857,27999.0,27998.0,0.102]
[1680594246593,0.3525351,27999.0,27998.0,0.002]
[1680594246816,0.3634011,27999.0,27998.0,0.002]
[1680594247040,0.3634011,27999.0,27997.0,0.0344942]
[1680594247267,0.3714011,27999.0,27998.0,0.002]
[1680594247914,0.318866,27999.0,27998.0,0.002]
[1680594248134,0.321723,27999.0,27998.0,0.002]
[1680594248683,0.008,27999.0,27998.0,0.46723083]
[1680594248936,0.008,27999.0,27998.0,0.51658583]
[1680594249159,0.008,27999.0,27998.0,0.60178583]
[1680594249383,0.008,27999.0,27998.0,0.74927853]
[1680594249603,0.008,27999.0,27998.0,0.84927853]
[1680594249867,0.18,28000.0,27998.0,0.84727853]
[1680594250081,0.18,28000.0,27999.0,0.315874]
[1680594250303,0.18,28000.0,27999.0,0.316054]
[1680594250928,0.186,28000.0,27999.0,0.316054]
[1680594251202,0.186,28000.0,27999.0,0.230854]
[1680594251423,0.18,28000.0,27999.0,0.3655119]
[1680594251647,0.186,28000.0,27999.0,0.71034735]
[1680594251878,0.186,28000.0,27999.0,0.57568945]
[1680594252119,0.186,28000.0,27999.0,0.232854]
[1680594252349,0.186,28000.0,27999.0,0.67796084]
[1680594252582,0.186,28000.0,27999.0,0.16274]
[1680594252811,0.186,28000.0,27999.0,0.69999135]
[1680594253028,0.186,28000.0,27999.0,0.62186982]
[1680594253265,0.18,28000.0,27999.0,0.60558382]
[1680594253483,0.18,28000.0,27999.0,0.60858382]
[1680594253714,0.18,28000.0,27999.0,0.75846362]
[1680594253944,0.186,28000.0,27999.0,0.79412459]
[1680594254159,0.186,28000.0,27999.0,0.3853338]
[1680594254388,0.186,28000.0,27999.0,0.85236627]
[1680594254614,0.186,28000.0,27999.0,0.69948647]
[1680594256593,0.186,28000.0,27999.0,0.71343409]
[1680594256831,0.186,28000.0,27999.0,0.24674]
[1680594257046,0.186,28000.0,27999.0,0.71262044]
[1680594257262,0.186,28000.0,27999.0,0.8601892]
[1680594257970,0.186,28000.0,27999.0,0.71262044]
[1680594260831,0.186,28000.0,27999.0,0.24674]
[1680594261288,0.186,28000.0,27999.0,0.69963142]
[1680594261513,0.186,28000.0,27999.0,0.68534542]
[1680594262832,0.186,28000.0,27999.0,0.68883042]
[1680594263285,0.186,28000.0,27999.0,0.63907142]
[1680594263723,0.186,28000.0,27999.0,0.68732342]
[1680594263947,0.186,28000.0,27999.0,0.68756142]
[1680594264178,0.186,28000.0,27999.0,0.63907142]
[1680594266708,0.186,28000.0,27999.0,0.45407142]
[1680594267484,0.186,28000.0,27999.0,0.00118]
[1680594269352,0.186,28000.0,27999.0,0.38647248]
[1680594271319,0.186,28000.0,27999.0,0.00118]
[1680594271752,0.186,28000.0,27999.0,0.001]
[1680594271989,0.186,28000.0,27999.0,0.00118]
[1680594273320,0.186,28000.0,27999.0,0.46709046]
[1680594273562,0.186,28000.0,27999.0,0.00118]
[1680594273785,0.186,28000.0,27999.0,0.001]
[1680594274273,0.186,28000.0,27999.0,0.00118]
[1680594274934,0.186,28000.0,27999.0,0.47018761]
[1680594275172,0.186,28000.0,27999.0,0.52085379]
[1680594275386,0.186,28000.0,27999.0,0.57152979]
[1680594276264,0.186,28000.0,27999.0,0.56926998]
[1680594279255,0.186,28000.0,27999.0,0.5187838]
[1680594284391,0.186,28000.0,27996.0,0.1344342]
[1680594284629,0.186,28000.0,27995.0,0.00012]
[1680594284630,0.2,27996.0,27995.0,0.00012]
[1680594284871,0.2,27996.0,27989.0,0.1]
[1680594284872,0.7752,27989.0,27988.0,73.24146015]
[1680594285108,0.7752,27989.0,27988.0,72.10860671]
[1680594285109,1.23983,27989.0,27988.0,72.10860671]
[1680594285337,1.23983,27989.0,27988.0,69.80332793]
[1680594285338,2.18614446,27989.0,27988.0,69.80332793]
[1680594285570,2.18614446,27989.0,27988.0,69.53037033]
[1680594285571,3.67881907,27989.0,27988.0,69.53037033]
[1680594285797,4.62199208,27989.0,27988.0,67.86390171]
[1680594286044,4.36731202,27989.0,27988.0,67.84965267]
[1680594286270,3.44201556,27989.0,27988.0,67.84676158]
[1680594286494,3.67458796,27989.0,27988.0,67.40983491]
[1680594286727,4.02007159,27989.0,27988.0,67.40983491]
[1680594286946,4.04707159,27989.0,27988.0,67.40983491]
[1680594287174,4.79901097,27989.0,27988.0,67.30783172]
[1680594287424,4.30829572,27989.0,27988.0,66.79389172]
[1680594287665,2.0550166,27989.0,27988.0,66.65211491]
[1680594288123,2.0550166,27989.0,27988.0,66.65217491]
[1680594288352,2.0550166,27989.0,27988.0,66.99641849]
[1680594288578,2.0550166,27989.0,27988.0,66.65217491]
[1680594288799,3.4860059,27989.0,27988.0,66.65217491]
[1680594289027,3.4860059,27989.0,27988.0,67.08094952]
[1680594289028,3.3345259,27989.0,27988.0,67.08094952]
[1680594289255,3.6897259,27989.0,27988.0,67.07894952]
[1680594289539,3.04904223,27989.0,27988.0,67.08094952]
[1680594289759,3.06325823,27989.0,27988.0,67.08094952]
[1680594290221,2.9363033,27989.0,27988.0,67.08094952]
[1680594290442,3.0209033,27989.0,27988.0,67.08094952]
[1680594290669,3.0209033,27989.0,27988.0,67.15059993]
[1680594290670,1.6976293,27989.0,27988.0,67.15059993]
[1680594290893,1.43047635,27989.0,27988.0,66.65417491]
[1680594291116,1.43047635,27989.0,27988.0,67.06111588]
[1680594291353,1.43047635,27989.0,27988.0,66.65417491]
[1680594291580,1.41347635,27989.0,27988.0,66.65217491]
[1680594291819,1.42947635,27989.0,27988.0,66.65417491]
[1680594292041,1.41347635,27989.0,27988.0,66.99328565]
[1680594292265,1.72947635,27989.0,27988.0,66.65417491]
[1680594292485,1.72968635,27989.0,27988.0,66.93454954]
[1680594293258,1.72968635,27989.0,27988.0,66.47844332]
[1680594293714,1.72968635,27989.0,27988.0,66.93401215]
[1680594294427,2.37989435,27989.0,27988.0,66.14693539]
[1680594294649,3.01089435,27989.0,27988.0,59.90860898]
[1680594294883,4.04500617,27989.0,27988.0,59.67873792]
[1680594295112,4.04468707,27989.0,27988.0,59.08540069]
[1680594295356,4.25077088,27989.0,27988.0,59.08540069]
[1680594295860,4.23477088,27989.0,27988.0,59.08340069]
[1680594296081,4.96177088,27989.0,27988.0,59.08340069]
[1680594296302,4.83513505,27989.0,27988.0,59.08340069]
[1680594296533,4.9194692,27989.0,27988.0,59.07248896]
[1680594297223,4.83513505,27989.0,27988.0,59.07248896]
[1680594298115,4.61125443,27989.0,27988.0,59.05260753]
[1680594298339,4.61125443,27989.0,27988.0,59.01685366]
[1680594298556,4.61125443,27989.0,27988.0,59.01697366]
[1680594298732,4.61125443,27989.0,27988.0,59.01685366]
[1680594299559,4.64706791,27989.0,27988.0,59.01685366]
[1680594300119,4.68435218,27989.0,27988.0,59.01685366]
[1680594300559,4.9082328,27989.0,27988.0,59.01685366]
[1680594300785,4.9082328,27989.0,27988.0,58.98209802]
[1680594300987,4.9082328,27989.0,27988.0,58.89279802]
[1680594301212,4.9082328,27989.0,27988.0,58.81627802]
[1680594301865,4.9082328,27989.0,27988.0,58.80713802]
[1680594302085,4.9082328,27989.0,27988.0,58.79649802]
[1680594302296,4.9082328,27989.0,27988.0,58.77665802]
[1680594302514,4.9082328,27989.0,27988.0,58.59005465]
[1680594303218,4.9082328,27989.0,27988.0,58.58665465]
[1680594304563,4.9082328,27989.0,27988.0,58.57777299]
[1680594304996,4.68191272,27989.0,27988.0,58.57777299]
[1680594305214,4.4580321,27989.0,27988.0,58.57777299]
[1680594307191,4.4580321,27989.0,27988.0,58.51549107]
[1680594307192,4.4665321,27989.0,27988.0,58.51549107]
[1680594307424,4.69041272,27989.0,27988.0,58.51549107]
[1680594307847,4.20820953,27989.0,27988.0,58.51209107]
[1680594308072,4.19970953,27989.0,27988.0,58.65398788]
[1680594308299,3.97582891,27989.0,27988.0,58.51209107]
[1680594308525,3.6578221,27989.0,27988.0,58.51221107]
[1680594309396,3.6578221,27989.0,27988.0,58.51227107]
[1680594310254,3.9663221,27989.0,27988.0,58.51227107]
[1680594310690,3.2665321,27989.0,27988.0,58.35125273]
[1680594311423,3.71131402,27989.0,27988.0,58.31642153]
[1680594311860,3.71131402,27989.0,27988.0,58.07515715]
[1680594313228,3.71131402,27989.0,27988.0,58.07533715]
[1680594313229,3.00613394,27989.0,27988.0,58.07533715]
[1680594313653,2.7791121,27989.0,27988.0,58.07533715]
[1680594313870,2.2324321,27989.0,27988.0,58.07533715]
[1680594314526,2.0324321,27989.0,27988.0,58.07533715]
[1680594315008,2.3054321,27989.0,27988.0,58.07533715]
[1680594315215,2.3324321,27989.0,27988.0,58.07533715]
[1680594315427,2.3054321,27989.0,27988.0,58.07533715]
[1680594315634,2.3324321,27989.0,27988.0,58.07533715]
[1680594315859,2.6806321,27989.0,27988.0,58.07533715]
[1680594316069,2.7076321,27989.0,27988.0,58.07533715]
[1680594316305,2.7161321,27989.0,27988.0,58.07533715]
[1680594316512,2.6891321,27989.0,27988.0,58.07533715]
[1680594316719,2.8876121,27989.0,27988.0,58.07533715]
[1680594316926,2.8606121,27989.0,27988.0,58.07533715]
[1680594317555,2.6891321,27989.0,27988.0,58.07533715]
[1680594317765,2.7161321,27989.0,27988.0,58.07533715]
[1680594317971,2.6891321,27989.0,27988.0,58.07533715]
[1680594318181,2.8606121,27989.0,27988.0,58.07533715]
[1680594318412,2.8876121,27989.0,27988.0,58.07533715]
[1680594318606,2.6891321,27989.0,27988.0,58.07533715]
[1680594318871,2.3409321,27989.0,27988.0,58.07533715]
[1680594319065,2.3139321,27989.0,27988.0,58.07533715]
[1680594319285,2.49925382,27989.0,27988.0,58.07533715]
[1680594320010,2.84745382,27989.0,27988.0,58.07533715]
[1680594320470,2.76245382,27989.0,27988.0,58.07533715]
[1680594320929,2.86111468,27989.0,27988.0,58.07533715]
[1680594321151,2.48591468,27989.0,27988.0,58.07533715]
[1680594321424,2.45891468,27989.0,27988.0,58.07533715]
[1680594321659,2.48591468,27989.0,27988.0,58.07533715]
[1680594322116,2.86111468,27989.0,27988.0,58.07533715]
[1680594322832,2.48591468,27989.0,27988.0,58.07533715]
[1680594323059,2.36846955,27989.0,27988.0,58.07533715]
[1680594323289,2.21014783,27989.0,27988.0,58.07533715]
[1680594323515,2.21035783,27989.0,27988.0,58.05857975]
[1680594323976,2.18314783,27989.0,27988.0,58.05875975]
[1680594324198,2.46202758,27989.0,27988.0,58.05975975]
[1680594324421,2.43502758,27989.0,27988.0,58.05875975]
[1680594324639,2.46202758,27989.0,27988.0,58.05975975]
[1680594325089,2.43502758,27989.0,27988.0,58.05875975]
[1680594325302,2.43502758,27989.0,27988.0,58.05975975]
[1680594325303,2.46202758,27989.0,27988.0,58.05975975]
[1680594325521,2.35002758,27989.0,27988.0,58.52164466]
[1680594325732,2.21864783,27989.0,27988.0,58.52264466]
[1680594326687,2.21864783,27989.0,27988.0,58.52164466]
[1680594326688,2.18314783,27989.0,27988.0,58.52164466]
[1680594326907,2.21014783,27989.0,27988.0,58.52164466]
[1680594327564,2.21014783,27989.0,27988.0,58.05875975]
[1680594330234,2.33678366,27989.0,27988.0,58.05875975]
[1680594331110,2.50610824,27989.0,27988.0,58.05875975]
[1680594331317,2.33699366,27989.0,27988.0,58.05869975]
[1680594331537,2.33678366,27989.0,27988.0,58.05875975]
[1680594331996,2.33678366,27989.0,27988.0,58.4867312]
[1680594332670,2.4215775,27989.0,27988.0,58.4867312]
[1680594333109,2.4215775,27989.0,27988.0,58.05875975]
[1680594334492,2.33678366,27989.0,27988.0,58.05875975]
[1680594334718,2.42156772,27989.0,27988.0,58.05875975]
[1680594334941,2.33678366,27989.0,27988.0,58.05875975]
[1680594337108,2.33678366,27989.0,27988.0,58.50384008]
[1680594339302,2.33678366,27989.0,27988.0,58.05875975]
[1680594339516,2.34528366,27989.0,27988.0,58.52375055]
[1680594340362,2.51454824,27989.0,27988.0,58.52375055]
[1680594340576,2.50604824,27989.0,27988.0,58.52375055]
[1680594340832,2.50604824,27989.0,27988.0,58.05875975]
[1680594341477,2.50604824,27989.0,27988.0,58.52323126]
[1680594341713,2.33678366,27989.0,27988.0,58.52323126]
[1680594342201,2.33678366,27989.0,27988.0,58.05875975]
[1680594342427,2.50604824,27989.0,27988.0,58.05875975]
[1680594342649,2.33678366,27989.0,27988.0,58.05875975]
[1680594343619,2.50604824,27989.0,27988.0,58.05875975]
[1680594344165,2.39720922,27989.0,27988.0,58.05875975]
[1680594344452,2.61805305,27989.0,27988.0,58.05869975]
[1680594344724,2.61784305,27989.0,27988.0,58.05875975]
[1680594345920,2.60875624,27989.0,27988.0,58.05869975]
[1680594346292,2.60854624,27989.0,27988.0,58.05875975]
[1680594347130,2.60875624,27989.0,27988.0,58.05847826]
[1680594347845,2.62655305,27989.0,27988.0,58.05847826]
[1680594349453,2.83813377,27989.0,27988.0,58.05847826]
[1680594350400,2.62655305,27989.0,27988.0,58.05859826]
[1680594351058,2.62655305,27989.0,27988.0,58.05847826]
[1680594352483,2.83813377,27989.0,27988.0,58.05847826]
[1680594353361,2.99659237,27989.0,27988.0,58.05847826]
[1680594353859,2.82732779,27989.0,27988.0,58.05847826]
[1680594354072,1.59264363,27989.0,27988.0,58.38370802]
[1680594354301,1.34932278,27989.0,27988.0,58.46890802]
[1680594354521,1.34932278,27989.0,27988.0,58.32701121]
[1680594354739,1.34932278,27989.0,27988.0,59.10765469]
[1680594354966,1.32518078,27989.0,27988.0,59.10765469]
[1680594355184,1.32232278,27989.0,27988.0,59.10765469]
[1680594355395,1.2945093,27989.0,27988.0,58.75412648]
[1680594355822,1.2865093,27989.0,27988.0,58.75312648]
[1680594356043,1.2875093,27989.0,27988.0,58.75912648]
[1680594356469,1.5875093,27989.0,27988.0,58.75912648]
[1680594356691,1.5865093,27989.0,27988.0,58.75312648]
[1680594356899,1.5945093,27989.0,27988.0,58.75412648]
[1680594358287,1.5865093,27989.0,27988.0,58.75312648]
[1680594358507,1.5875093,27989.0,27988.0,58.75912648]
[1680594358730,1.5865093,27989.0,27988.0,58.75312648]
[1680594358935,1.7745093,27989.0,27988.0,58.75412648]
[1680594359361,1.7665093,27989.0,27988.0,58.75312648]
[1680594359642,1.7675093,27989.0,27988.0,58.75912648]
[1680594359835,1.7665093,27989.0,27988.0,58.75312648]
[1680594360102,1.7745093,27989.0,27988.0,58.32801121]
[1680594360273,1.7745093,27989.0,27988.0,58.76119113]
[1680594361033,1.7665093,27989.0,27988.0,59.11471934]
[1680594361249,1.7675093,27989.0,27988.0,58.68753942]
[1680594361679,1.7675093,27989.0,27988.0,58.33301121]
[1680594362789,1.7675093,27989.0,27988.0,58.65781121]
[1680594362996,1.7675093,27989.0,27988.0,58.99753068]
[1680594363224,1.7675093,27989.0,27988.0,58.69024821]
[1680594363428,1.7675093,27989.0,27988.0,59.01453611]
[1680594363849,1.7665093,27989.0,27988.0,59.04234811]
[1680594364065,1.7675093,27989.0,27988.0,59.04834811]
[1680594364705,1.7675093,27989.0,27988.0,58.69162321]
[1680594364932,1.7675093,27989.0,27988.0,58.65781121]
[1680594365418,1.4675093,27989.0,27988.0,59.03119327]
[1680594365838,1.4675093,27989.0,27988.0,58.99743327]
[1680594366286,1.4675093,27989.0,27988.0,59.03300027]
[1680594366751,1.4675093,27989.0,27988.0,58.65781121]
[1680594366965,1.4677193,27989.0,27988.0,58.18071534]
[1680594367866,1.4677193,27989.0,27988.0,58.17703021]
[1680594368113,1.4677193,27989.0,27988.0,58.6222505]
[1680594368794,1.4677193,27989.0,27988.0,58.44990143]
[1680594369013,1.4677193,27989.0,27988.0,58.00468114]
[1680594369451,1.4677193,27989.0,27988.0,58.77363952]
[1680594369674,1.4677193,27989.0,27988.0,58.39291635]
[1680594369902,1.4677193,27989.0,27988.0,58.00468114]
[1680594370126,1.4677193,27989.0,27988.0,58.03766314]
[1680594370342,1.4677193,27989.0,27988.0,58.03778314]
[1680594370552,1.4677193,27989.0,27988.0,58.03772314]
[1680594370775,1.4677193,27989.0,27988.0,58.00468114]
[1680594370983,1.4677193,27989.0,27988.0,58.03734714]
[1680594371219,1.4677193,27989.0,27988.0,58.38987535]
[1680594371941,1.4677193,27989.0,27988.0,58.03534714]
[1680594373752,1.4677193,27989.0,27988.0,58.00268114]
[1680594373980,1.4677193,27989.0,27988.0,58.4822213]
[1680594374626,1.4675093,27989.0,27988.0,58.4823413]
[1680594374844,1.4675093,27989.0,27988.0,58.03670314]
[1680594375060,1.4675093,27989.0,27988.0,58.19100772]
[1680594375286,1.4675093,27989.0,27988.0,57.86780314]
[1680594375956,1.4675093,27989.0,27988.0,58.26781898]
[1680594378131,1.4675093,27989.0,27988.0,57.86780314]
[1680594378348,1.4675093,27989.0,27988.0,58.21707464]
[1680594378573,1.4675093,27989.0,27988.0,58.25159664]
[1680594378777,1.4675093,27989.0,27988.0,58.26208795]
[1680594379224,1.4675093,27989.0,27988.0,58.03862314]
[1680594379482,1.4675093,27989.0,27988.0,58.38831014]
[1680594380823,1.4675093,27989.0,27988.0,58.05297414]
[1680594381035,0.00015,27990.0,27988.0,59.42478151]
[1680594381279,0.028567,28004.0,28000.0,0.09795295]
[1680594381280,0.03558473,28003.0,28000.0,0.09795295]
[1680594381488,0.003066,28003.0,28001.0,0.14189681]
[1680594381720,0.01179837,28003.0,28001.0,0.14189681]
[1680594381940,0.024378,28002.0,28001.0,0.14189681]
[1680594382164,0.25541426,28002.0,28000.0,0.09795295]
[1680594382390,0.026036,28001.0,28000.0,0.09795295]
[1680594382622,0.029103,28001.0,28000.0,0.09795295]
[1680594383541,0.329103,28001.0,28000.0,0.09795295]
[1680594383771,0.045103,28001.0,28000.0,0.09895295]
[1680594383987,0.345103,28001.0,28000.0,0.14652033]
[1680594384458,0.319067,28001.0,28000.0,0.56373822]
[1680594385131,0.319067,28001.0,28000.0,0.56273822]
[1680594385132,0.003067,28001.0,28000.0,0.56273822]
[1680594385346,0.01521,28001.0,28000.0,0.56373822]
[1680594386023,0.01521,28001.0,28000.0,0.64883822]
[1680594386241,0.0506502,28002.0,28000.0,0.68212822]
[1680594386463,0.015,28001.0,28000.0,0.71706304]
[1680594386678,0.015,28001.0,28000.0,0.74966804]
[1680594387132,0.015,28001.0,28000.0,0.68144322]
[1680594387365,0.01521,28001.0,28000.0,0.68144322]
[1680594387812,0.015,28001.0,28000.0,0.68144322]
[1680594389190,0.015,28001.0,28000.0,0.57803783]
[1680594389410,0.04944556,28001.0,28000.0,0.57803783]
[1680594389630,0.04944556,28001.0,28000.0,0.65584161]
[1680594389851,0.04944556,28001.0,28000.0,0.72198638]
[1680594390069,0.04944556,28001.0,28000.0,0.29446173]
[1680594390289,0.04944556,28001.0,28000.0,0.26185673]
[1680594390511,0.04944556,28001.0,28000.0,0.18405295]
[1680594390741,0.22944556,28001.0,28000.0,0.59905632]
[1680594390979,0.51465556,28001.0,28000.0,0.59805632]
[1680594391210,0.51665556,28001.0,28000.0,0.61305632]
[1680594391434,0.51465556,28001.0,28000.0,0.59805632]
[1680594391659,0.51665556,28001.0,28000.0,0.61305632]
[1680594392336,0.48021,28001.0,28000.0,0.59805632]
[1680594392565,0.48021,28001.0,28000.0,0.61305632]
[1680594392566,0.48221,28001.0,28000.0,0.61305632]
[1680594393023,0.48021,28001.0,28000.0,0.59805632]
[1680594393915,0.18221,28001.0,28000.0,0.61305632]
[1680594397302,0.182,28001.0,28000.0,0.61317632]
[1680594397519,0.18221,28001.0,28000.0,0.61305632]
[1680594398626,0.510703,28001.0,28000.0,0.11295295]
[1680594399520,0.485067,28001.0,28000.0,0.11295295]
[1680594399966,0.48221,28001.0,28000.0,0.11295295]
[1680594400179,0.48021,28001.0,28000.0,0.41939099]
[1680594400399,0.48021,28001.0,28000.0,0.42439099]
[1680594400621,0.48021,28001.0,28000.0,0.41939099]
[1680594400834,0.48121,28001.0,28000.0,0.43039099]
[1680594401045,1.76684855,28001.0,28000.0,0.43039099]
[1680594401264,1.76584855,28001.0,28000.0,0.41939099]
[1680594401476,1.76584855,28001.0,28000.0,0.42439099]
[1680594401677,1.76584855,28001.0,28000.0,0.41939099]
[1680594402106,1.76584855,28001.0,28000.0,0.46985209]
[1680594402527,1.76584855,28001.0,28000.0,0.47485209]
[1680594403191,1.76584855,28001.0,28000.0,0.55995209]
[1680594404380,1.46584855,28001.0,28000.0,0.55995209]
[1680594404807,1.46584855,28001.0,28000.0,0.28675305]
[1680594405018,1.46584855,28001.0,28000.0,0.7901681]
[1680594405232,1.46584855,28001.0,28000.0,0.8231011]
[1680594405453,1.46584855,28001.0,28000.0,0.7901681]
[1680594405652,1.46584855,28001.0,28000.0,0.79005645]
[1680594405894,1.46584855,28001.0,28000.0,0.79023645]
[1680594405895,1.46563855,28001.0,28000.0,0.79023645]
[1680594407484,1.46563855,28001.0,28000.0,0.69023645]
[1680594408176,1.46563855,28001.0,28000.0,0.77443645]
[1680594408411,1.46563855,28001.0,28000.0,0.80747445]
[1680594409034,1.46563855,28001.0,28000.0,0.77443645]
[1680594409709,1.46563855,28001.0,28000.0,0.80856445]
[1680594410598,1.46563855,28001.0,28000.0,0.3207343]
[1680594410818,1.46563855,28001.0,28000.0,0.71007101]
[1680594411059,1.46563855,28001.0,28000.0,0.3712843]
[1680594411532,1.46584855,28001.0,28000.0,0.75555052]
[1680594411728,1.46584855,28001.0,28000.0,0.7414243]
[1680594411953,1.46584855,28001.0,28000.0,1.3287695]
[1680594411954,1.46763855,28001.0,28000.0,1.3287695]
[1680594412176,1.46563855,28001.0,28000.0,1.3087695]
[1680594412391,1.46763855,28001.0,28000.0,1.3287695]
[1680594413682,1.46769855,28001.0,28000.0,1.3287095]
[1680594413930,1.46763855,28001.0,28000.0,1.3287695]
[1680594414135,1.46563855,28001.0,28000.0,1.3087695]
[1680594414421,1.46763855,28001.0,28000.0,1.3144845]
[1680594414642,1.46563855,28001.0,28000.0,1.2947305]
[1680594414883,1.46763855,28001.0,28000.0,1.3147305]
[1680594415330,1.46563855,28001.0,28000.0,0.86445093]
[1680594415554,1.46763855,28001.0,28000.0,1.18930167]
[1680594415783,1.46763855,28001.0,28000.0,0.76587693]
[1680594415997,1.46763855,28001.0,28000.0,1.11409468]
[1680594416206,1.46763855,28001.0,28000.0,1.08341185]
[1680594416421,1.46763855,28001.0,28000.0,1.11636885]
[1680594416647,1.46763855,28001.0,28000.0,1.08341185]
[1680594416831,1.46763855,28001.0,28000.0,1.11803685]
[1680594417039,1.46763855,28001.0,28000.0,1.08341185]
[1680594417260,1.46763855,28001.0,28000.0,0.66587693]
[1680594417483,1.46763855,28001.0,28000.0,0.81297193]
[1680594418002,1.46763855,28001.0,28000.0,1.33788249]
[1680594420411,1.46763855,28001.0,28000.0,1.78628679]
[1680594420635,1.46763855,28001.0,28000.0,1.67912282]
[1680594421300,1.46763855,28001.0,28000.0,1.33788249]
[1680594421528,1.46784855,28001.0,28000.0,1.25175112]
[1680594421748,1.46784855,28001.0,28000.0,1.64123612]
[1680594422197,0.18221,28001.0,27999.0,0.00012]
[1680594422430,1.64946615,28000.0,27994.0,0.00018]
[1680594422698,1.35477915,27999.0,27994.0,0.32958555]
[1680594422920,1.33131515,27998.0,27994.0,0.32970555]
[1680594423147,1.32856515,27997.0,27994.0,0.32970555]
[1680594423373,1.32747115,27996.0,27995.0,0.37062123]
[1680594423597,1.32768115,27996.0,27995.0,0.37062123]
[1680594424089,1.32768115,27996.0,27995.0,0.45934578]
[1680594424290,1.28569015,27996.0,27995.0,0.03708012]
[1680594424516,1.33633415,27996.0,27993.0,0.33969892]
[1680594424740,0.01121,27996.0,27993.0,0.33969892]
[1680594424963,0.011,27996.0,27994.0,0.1]
[1680594426132,0.002857,27997.0,27994.0,0.1]
[1680594426362,1.2857432,27996.0,27994.0,0.1]
[1680594426617,1.2859532,27996.0,27994.0,0.1]
[1680594426839,1.2859532,27996.0,27994.0,0.47977866]
[1680594427061,0.00521,27996.0,27994.0,0.47977866]
[1680594427295,0.005,27996.0,27994.0,0.47977866]
[1680594428205,0.005,27996.0,27994.0,0.47989866]
[1680594428972,0.005,27996.0,27994.0,0.47977866]
[1680594429843,0.002857,27998.0,27994.0,0.47977866]
[1680594430049,0.043069,27995.0,27994.0,0.47977866]
[1680594430277,0.005,27996.0,27994.0,0.47977866]
[1680594430677,0.002857,27998.0,27994.0,0.47977866]
[1680594430893,1.28575008,27997.0,27995.0,0.51709681]
[1680594431111,0.00021,27997.0,27996.0,0.1]
[1680594431330,1.28584792,27999.0,27996.0,0.1]
[1680594431955,1.28584792,27999.0,27997.0,0.43198639]
[1680594432164,0.005,27998.0,27997.0,0.43198639]
[1680594432372,0.00021,27999.0,27998.0,0.1]
[1680594432586,0.00021,27999.0,27997.0,0.43198639]